Cogmind - Beta 16.1 @@@ ROGUE MODE // 2026.06.19 @ 21:27:33 Player: Cinder Result: Self-destructed Performance ------------- Evolutions (5) 2500 Regions Visited (5) 1000 Robots Destroyed (42) 210 Value Destroyed (1507) 1507 Prototype IDs (12) 240 Alien Tech Used (0) 0 Bonus (828) 828 TOTAL SCORE: 6285 Bonus ------- High Alert Combat Kills 198 Registered with UFD 300 Met Optimus in HQ 500 Friendly Fire -170 Cogmind --------- Core Integrity 521/1000 Matter 79/300 Energy 58/100 System Corruption 11% Temperature Cool (0) Movement Walking (250) Ox2 Location -5/Factory Parts ------- > --- POWER (1) -------- (None) > --- PROPULSION (5) --- Multireflex Exoskeleton Multireflex Exoskeleton > --- UTILITY (8) ------ Improved Cooling System Vampiric Humpback Spectral Analyzer Medium Armor Plating > --- WEAPON (3) ------- Enhanced Coil Gun > --- INVENTORY (35) --- Improved Deuterium Engine Cooled Deuterium Engine Improved Treads Armored Medium Treads Multireflex Exoskeleton Scrap Suit Scrap Suit Advanced Heat Sink Advanced Heat Sink Huge Storage Unit Medium Matter Pod (0) Medium Matter Pod (0) Seismic Detector Improved Kinecellerator A0-MCA's Component Scanner Wave Gun Autogun Heavy Mass Driver CPS Tube (1) Peak State ------------ > --- POWER ------------ Cooled Deuterium Engine > --- PROPULSION ------- Advanced Treads Multireflex Exoskeleton Multireflex Exoskeleton > --- UTILITY ---------- Scrap Suit Improved Cooling System Vampiric Humpback Medium Armor Plating Hardened Medium Armor Plating Improved Light Armor Plating > --- WEAPON ----------- Tesla Rifle Enhanced Coil Gun Enhanced Coil Gun > --- INVENTORY -------- Nuclear Core Improved Deuterium Engine Cooled Deuterium Engine Improved Treads Armored Medium Treads Multireflex Exoskeleton Scrap Suit Scrap Suit Advanced Heat Sink Advanced Heat Sink Huge Storage Unit Medium Matter Pod Medium Matter Pod Spectral Analyzer Seismic Detector Improved Kinecellerator Medium Armor Plating A0-MCA's Component Scanner Wave Gun Particle Cannon Autogun Enhanced Coil Gun Heavy Mass Driver Rocket Launcher Rocket Launcher CPS Tube [Rating: 90] Favorites ----------- Power Ion Engine Engine Ion Engine Power Core Nuclear Core Propulsion Light Treads Treads Light Treads Leg Multireflex Exoskeleton Wheel Ballwheel Utility Seismic Detector Device Seismic Detector Storage Humpback Processor Spectral Analyzer Protection Improved Light Armor Plating Weapon Assault Rifle Energy Gun Small Laser Energy Cannon Particle Cannon Ballistic Gun Assault Rifle Ballistic Cannon Heavy Mass Driver Launcher Rocket Launcher Special Weapon Mining Laser Build | -11 -10 -10 -10 -7 -5 ------- Run | Yrd Mat Min Sub Scr Fac Slots Evolved 10 | . . . . . 10 Power . | . . . . . . Propulsion 3 | . . . . . 3 Utility 6 | . . . . . 6 Weapon 1 | . . . . . 1 Parts Attached 44 | 6 2 1 1 8 26 Power 5 | 1 . . . 1 3 Engine 4 | 1 . . . 1 2 Core 1 | . . . . . 1 Reactor . | . . . . . . Propulsion 8 | 2 . . . 1 5 Treads 4 | 2 . . . . 2 Leg 2 | . . . . . 2 Wheel 2 | . . . . 1 1 Hover . | . . . . . . Flight . | . . . . . . Utility 16 | 1 2 . . 2 11 Device 3 | . 1 . . . 2 Storage 5 | 1 1 . . 2 1 Processor 1 | . . . . . 1 Hackware . | . . . . . . Protection 7 | . . . . . 7 Artifact . | . . . . . . Weapon 15 | 2 . 1 1 4 7 Energy Gun 1 | 1 . . . . . Energy Cannon 3 | . . . . 2 1 Ballistic Gun 5 | 1 . 1 . . 3 Ballistic Cannon 1 | . . . . . 1 Launcher 2 | . . . . 1 1 Special Weapon 3 | . . . 1 1 1 Impact Weapon . | . . . . . . Slashing Weapon . | . . . . . . Piercing Weapon . | . . . . . . Special Melee Weapon . | . . . . . . Unidentified Prototypes 3 | . . . . . 3 Parts Lost 19 | . . . . 3 16 Power 3 | . . . . 1 2 Propulsion 3 | . . . . . 3 Utility 6 | . . . . . 6 Weapon 7 | . . . . 2 5 Highest Loss Streak 5 | . . . . 2 5 To Critical Strikes . | . . . . . . Average Backups 18 | 1 7 14 14 20 25 Power 1 | . 1 1 1 . 2 Propulsion 1 | . . . . 1 5 Utility 9 | . 2 8 8 10 12 Weapon 5 | 1 3 5 5 5 4 Tool/Special . | . . . . . . Unused Backups 24 | . 1 2 . 4 17 Power 5 | . . . . 2 3 Propulsion 3 | . . . . . 3 Utility 13 | . 1 1 . 2 9 Weapon 3 | . . 1 . . 2 Tool/Special . | . . . . . . Average Slot Usage (%) 87 | . 95 100 100 89 67 Engine 12 | . 14 14 14 13 3 Treads 20 | . 28 28 28 22 4 Wheel 2 | . . . . 2 4 Device 8 | . 9 14 14 7 10 Storage 12 | . 14 14 14 13 5 Protection 2 | . . . . . 16 Energy Gun 1 | . 14 1 . . . Energy Cannon 1 | . . . . . 5 Ballistic Gun 13 | . 14 26 23 13 8 Special Weapon 9 | . . . 4 13 . Peak Build Rating 90 | 6 9 9 9 28 90 Average Rating 23 | 5 7 9 9 14 79 On Entrance 9 | . 6 9 9 9 23 Avg Prop Armor Cover (%) 3 | . . . . . 3 Naked Turns . | . . . . . . Heaviest Build 251 | 13 29 29 29 217 251 Greatest Support 72 | 40 40 40 40 40 72 Greatest Overweight (x) 7 | . . . . 7 7 Average Overweight (x) 2 | . . . . 2 6 Largest Inventory Capacity 35 | 8 15 15 15 35 35 Average Capacity 25 | 7 14 15 15 27 35 Most Carried 35 | 5 15 15 15 35 35 Average Carried 21 | 1 7 14 15 22 31 Final Capacity 35 | 8 15 15 15 35 35 Final Carried 35 | 4 15 15 15 35 23 Scrap Suit Usage (%) 9 | . . . . . 57 Parts Cannibalized 9 | . . . . . 9 Class Distribution -------------------- 53% | Mutant 30% | Hauler-Mutant 15% | Hauler-Tank Dominant Class ---------------- Mutant | -10/Materials Mutant | -10/Mines Mutant | -10/Subcaves Mutant | -7/Scraptown Hauler-Tank | -5/Factory Resources | -11 -10 -10 -10 -7 -5 ----------- Run | Yrd Mat Min Sub Scr Fac Matter Collected 1525 | 275 111 37 . 257 845 Remotely . | . . . . . . Salvage Created 1445 | 37 134 . . 207 1067 Parts 87 | 5 11 . . 8 63 Haulers Intercepted . | . . . . . . Recyclers Shooed . | . . . . . . Parts Field Recycled . | . . . . . . Retrieved Matter . | . . . . . . Parts Self-Destructed . | . . . . . . Prevented . | . . . . . . Parts Restored . | . . . . . . Kills | -11 -10 -10 -10 -7 -5 ------- Run | Yrd Mat Min Sub Scr Fac Combat Hostiles Destroyed 29 | . 4 . . 2 23 Guns 14 | . 4 . . . 10 Cannons 7 | . . . . . 7 AOE 8 | . . . . 2 6 Classes Destroyed 13 | 1 4 . . 1 7 Worker 1 | . . . . . 1 Builder 5 | . . . . . 5 Tunneler 2 | 2 . . . . . Recycler 1 | . . . . . 1 Operator 1 | . 1 . . . . Watcher 2 | . 1 . . . 1 Swarmer 11 | . 3 . . . 8 Grunt 8 | . 1 . . . 7 Sentry 1 | . . . . . 1 Hunter 1 | . . . . . 1 Programmer 5 | . . . . . 5 Behemoth 1 | . . . . . 1 Scrapper 3 | . . . . 3 . Best Kill Streak 9 | 2 3 . . 2 9 Combat Bots Only 7 | . 3 . . 2 7 Max Kills in Single Turn 3 | 1 2 . . 2 3 Gunslinging 1 | . 1 . . . . Exploded 2 | . . . . 2 1 Melee . | . . . . . . Uniques/NPCs Destroyed . | . . . . . . Combat | -11 -10 -10 -10 -7 -5 -------- Run | Yrd Mat Min Sub Scr Fac Hostile Shots Fired 370 | . 16 . . 24 330 Missed 97 | . 5 . . 6 86 Hits 273 | . 11 . . 18 244 Projectile 273 | . 11 . . 18 244 AOE 2 | . . . . . 2 Critical Strikes 11 | . . . . 1 10 Part Disruptions 3 | . . . . . 3 Damage Taken 5157 | . 100 . . 714 4343 Core 360 | . 37 . . 65 258 Absorbed by Shields . | . . . . . . Ignored by Resistances 259 | . . . . . 259 Regen/Repaired (Parts) 70 | . . . . . 70 Core Remaining (%) 79 | 100 . . . 59 . Volleys Fired 92 | 5 8 . 2 10 67 Largest 3 | 2 2 . 1 2 3 Hottest 166 | 60 60 . 100 128 166 Shots Fired 219 | 10 16 . 2 15 176 Gun 127 | 10 16 . . 3 98 Cannon 75 | . . . . 6 69 Launcher 9 | . . . . 1 8 Special 8 | . . . 2 5 1 Kinetic 122 | 5 8 . . 3 106 Thermal 82 | 5 8 . 2 11 56 Explosive 9 | . . . . 1 8 Electromagnetic 5 | . . . . . 5 Robot Hit Streak 20 | 4 5 . . 2 20 Robot Miss Streak 6 | 1 4 . . 1 6 Penetration Max 1 | . . . . . 1 Secondary Targets 1 | . 1 . . . . Max Gunslinging Chain 1 | . 1 . . . . Shots Hit Robots 129 | 7 8 . . 5 109 Core Hits 82 | 2 8 . . 5 67 Critical Kills 2 | . . . . . 2 Critical Parts Destroyed 2 | . . . . . 2 Critical Strikes 7 | . . . . . 7 Destroy 5 | . . . . . 5 Blast 2 | . . . . . 2 Melee Attacks . | . . . . . . Impact . | . . . . . . Slashing . | . . . . . . Piercing . | . . . . . . Sneak Attacks . | . . . . . . Combat Hostiles . | . . . . . . Follow-up Attacks . | . . . . . . Damage Inflicted 4973 | 78 102 . . 210 4583 Guns 2042 | 78 102 . . 25 1837 Cannons 1497 | . . . . 54 1443 Explosions 1432 | . . . . 129 1303 Melee . | . . . . . . Ramming 2 | . . . . 2 . Kinetic 2585 | 21 48 . . 25 2491 Thermal 992 | 57 54 . . 54 827 Explosive 1320 | . . . . 129 1191 Electromagnetic 74 | . . . . . 74 Impact . | . . . . . . Slashing . | . . . . . . Piercing . | . . . . . . Highest Corruption 11 | . . . . 5 11 Average Corruption 2 | . . . . 5 2 Corruption Purged . | . . . . . . Corruption Blocked . | . . . . . . Effects 11 | . . . . . 11 Message Errors 4 | . . . . . 4 Matter Fused 2 | . . . . . 2 Heat Flow Errors 2 | . . . . . 2 Energy Discharges 2 | . . . . . 2 Data Loss (minor) 1 | . . . . . 1 Overload Shots . | . . . . . . Overflow Damage 85 | . . . . . 85 Projectiles 24 | . . . . . 24 Explosions 61 | . . . . . 61 Melee . | . . . . . . Knockbacks . | . . . . . . Impact . | . . . . . . Kinetic . | . . . . . . Secondary . | . . . . . . Self-Inflicted Damage 83 | . . . . 1 82 Shots 4 | . . . . . 4 Rammed 1 | . . . . 1 . Targets Rammed 1 | . . . . 1 . Kicked . | . . . . . . Crushed . | . . . . . . Highest Temperature 316 | . . . . 156 316 Average Temperature 94 | . . . . 54 124 Received Heat Transfer 842 | . 24 . . 250 568 Siege Activations . | . . . . . . Martial Activations . | . . . . . . Shielding Activations . | . . . . . . Robots Disrupted . | . . . . . . Combat Hostiles . | . . . . . . Robots Corrupted . | . . . . . . Combat Hostiles . | . . . . . . Parts Fried . | . . . . . . Impact Corruptions . | . . . . . . Robots Melted . | . . . . . . Combat Hostiles . | . . . . . . Parts Melted 5 | . . . . 2 3 Heat Transferred 1744 | 125 125 . . 75 1419 Parts Sabotaged . | . . . . . . Parts Stolen . | . . . . . . Parts Stripped . | . . . . . . Power Chain Reactions 1 | . . . . . 1 Alert | -11 -10 -10 -10 -7 -5 ------- Run | Yrd Mat Min Sub Scr Fac Maximum Alert Level 3 | . . . . . 3 Low Security (%) 85 | 100 100 100 . . 69 Level 1 2 | . . . . . 4 Level 2 9 | . . . . . 20 Level 3 2 | . . . . . 5 Level 4 . | . . . . . . Level 5 . | . . . . . . High Security . | . . . . . . Max Security . | . . . . . . Peak Influence 730 | 5 67 . . . 730 Initial . | . . . . . . Average 112 | . 15 . . . 229 Influence Increases 1259 | 10 119 . . . 1130 Destroy 0b10 Robot/C 540 | . 80 . . . 460 Destroy 0b10 Robot/NC 60 | 10 10 . . . 40 Destroy Leader 124 | . 22 . . . 102 Successful Hack 31 | . 7 . . . 24 Disable Machine 150 | . . . . . 150 Destroy Structure 264 | . . . . . 264 Lose Combat Pursuer 90 | . . . . . 90 Influence Decreases 585 | 10 119 . . . 456 Time Decay 425 | 10 119 . . . 296 Lost Part 160 | . . . . . 160 Squads Dispatched 5 | . 1 . . . 4 Investigation 1 | . 1 . . . . Extermination 1 | . . . . . 1 Reinforcement 3 | . . . . . 3 Assault . | . . . . . . Garrison . | . . . . . . Intercept . | . . . . . . Searches Triggered . | . . . . . . Construction Impeded 1 | . . . . . 1 Haulers Reinforced . | . . . . . . Active Scanning Responses . | . . . . . . Cargo Convoy Interrupts 1 | . . . . . 1 Stealth | -11 -10 -10 -10 -7 -5 --------- Run | Yrd Mat Min Sub Scr Fac Distress Signals 2 | . . . . . 2 Communications Jammed . | . . . . . . Distress Signals . | . . . . . . Times Spotted 72 | . 6 . . 14 52 Peak Tracking Total 12 | . 3 . . 6 12 Tactical Retreats 3 | . . . . . 3 Traps | -11 -10 -10 -10 -7 -5 ------- Run | Yrd Mat Min Sub Scr Fac Traps Triggered . | . . . . . . Indirectly . | . . . . . . Trap Hack Attempts . | . . . . . . Triggered . | . . . . . . Disarmed . | . . . . . . Reprogrammed . | . . . . . . Reused . | . . . . . . Traps Extracted . | . . . . . . Installed . | . . . . . . Triggered . | . . . . . . Machines | -11 -10 -10 -10 -7 -5 ---------- Run | Yrd Mat Min Sub Scr Fac Machines Disabled 12 | . . . . 2 10 Max in Single Turn 5 | . . . . 1 5 Machines Repaired . | . . . . . . Machines Dismantled . | . . . . . . Machines Sabotaged . | . . . . . . Overloaded Fab Kills . | . . . . . . Hacking | -11 -10 -10 -10 -7 -5 --------- Run | Yrd Mat Min Sub Scr Fac Machines Accessed 5 | . 1 . . 3 1 Terminals 2 | . 1 . . . 1 Fabricators . | . . . . . . Repair Stations . | . . . . . . Recycling Units . | . . . . . . Scanalyzers . | . . . . . . Garrison Access . | . . . . . . Total Hacks 14 | . 3 . . 10 1 Successful 12 | . 1 . . 10 1 Failed 2 | . 2 . . . . Catastrophic . | . . . . . . Database Lockouts . | . . . . . . Manual 4 | . 3 . . . 1 Terminals 4 | . 3 . . . 1 Fabricators . | . . . . . . Repair Stations . | . . . . . . Recycling Units . | . . . . . . Scanalyzers . | . . . . . . Garrison Access . | . . . . . . Terminal Hacks 11 | . 1 . . 10 . Record 10 | . . . . 10 . Part Schematic 1 | . 1 . . . . Fabricator Hacks . | . . . . . . Repair Station Hacks . | . . . . . . Recycling Unit Hacks . | . . . . . . Scanalyzer . | . . . . . . Garrison Access Hacks . | . . . . . . Unauthorized Hacks 1 | . . . . . 1 Terminals 1 | . . . . . 1 Botnet 1 | . . . . . 1 Fabricators . | . . . . . . Repair Stations . | . . . . . . Recycling Units . | . . . . . . Scanalyzers . | . . . . . . Garrison Access . | . . . . . . Data Cores Recovered 1 | . 1 . . . . Used . | . . . . . . Hacking Detections 2 | . 1 . . . 1 Full Trace Events 1 | . 1 . . . . Feedback Events . | . . . . . . Feedback Blocked . | . . . . . . Robot Schematics Acquired . | . . . . . . Robots Built . | . . . . . . Authchips . | . . . . . . Time . | . . . . . . Total Robot Build Rating . | . . . . . . Part Schematics Acquired 1 | . 1 . . . . Parts Built . | . . . . . . Authchips . | . . . . . . Time . | . . . . . . Total Part Build Rating . | . . . . . . Part Studies Acquired . | . . . . . . Parts Repaired . | . . . . . . Time . | . . . . . . Parts Recycled . | . . . . . . Recycled Matter . | . . . . . . Retrieved Matter . | . . . . . . Retrieved Components . | . . . . . . Parts Scanalyzed . | . . . . . . Part Schematics Acquired . | . . . . . . Parts Damaged . | . . . . . . Bothacking | -11 -10 -10 -10 -7 -5 ------------ Run | Yrd Mat Min Sub Scr Fac Used RIF Installer . | . . . . . . Robots Hacked . | . . . . . . Non-combat . | . . . . . . Combat . | . . . . . . Robot Hacks Applied . | . . . . . . Relay Couplers Released . | . . . . . . Fabnet Peak Effective % . | . . . . . . Robots Rewired . | . . . . . . Allies Hacked . | . . . . . . Hacks Repelled . | . . . . . . Allies | -11 -10 -10 -10 -7 -5 -------- Run | Yrd Mat Min Sub Scr Fac Total Allies . | . . . . . . Largest Group . | . . . . . . Highest-Rated Group . | . . . . . . Highest-Rated Ally . | . . . . . . Total Orders . | . . . . . . Ally Attacks . | . . . . . . Total Damage . | . . . . . . Kills . | . . . . . . Allies Corrupted . | . . . . . . Allies Melted 3 | . . . . 3 . Intel | -11 -10 -10 -10 -7 -5 ------- Run | Yrd Mat Min Sub Scr Fac Active Infowar (turns) 2599 | . 445 177 93 1716 168 Optics 47 | . . . . . 47 Seismic 2552 | . 445 177 93 1716 121 Robot Analysis Total . | . . . . . . Derelict Logs Recovered 1 | . . 1 . . . Drone Launches . | . . . . . . Drone Recoveries . | . . . . . . Exploration | -11 -10 -10 -10 -7 -5 ------------- Run | Yrd Mat Min Sub Scr Fac Turns Passed 5158 | 131 623 177 93 3321 813 Spaces Moved 2178 | 65 360 108 51 1198 396 Core 1 | 1 . . . . . Treads 1482 | 64 360 108 51 899 . Legs 15 | . . . . . 15 Wheels 680 | . . . . 299 381 Hover . | . . . . . . Flight . | . . . . . . Fastest Speed 50 | 50 160 160 160 160 110 Average Speed 214 | 158 160 160 160 269 125 Slowest Speed 560 | 160 160 160 160 560 320 Overloaded Moves . | . . . . . . Propulsion Burnouts . | . . . . . . Robots Hopped . | . . . . . . Potential Cave-ins 1 | . . . . 1 . Cave-ins Triggered 1 | . . . . 1 . Exploration Rate (%) 35 | 4 52 46 8 87 15 Regions Visited 5 Branch Regions 3 Pre-discovered Areas 2 | . . . . 2 . Known Exits Taken . | . . . . . . Unknown Exits Taken 5 | 1 1 1 1 1 . Scrap Searched 5 | . . 1 . 4 . Spaces Dug 5 | . . . . 5 . Terrain Destroyed 186 | . . . . 16 170 Melee . | . . . . . . Projectile 66 | . . . . 5 61 AOE 120 | . . . . 11 109 Terrain Rammed . | . . . . . . Walls Destroyed . | . . . . . . Machines Disabled . | . . . . . . Actions | -11 -10 -10 -10 -7 -5 --------- Run | Yrd Mat Min Sub Scr Fac Total 2485 | 81 392 113 56 1266 577 Wait 41 | . 7 . 3 . 31 Move 2174 | 64 359 107 50 1198 396 Hop . | . . . . . . Pick Up 77 | 5 13 2 . 36 21 Fast Attach 12 | 6 1 . . 1 4 Attach 29 | . 1 . . 2 26 Detach 13 | . 1 . . 2 10 Swap 14 | . . 1 1 6 6 Drop 33 | 1 2 3 . 11 16 Fire 92 | 5 8 . 2 10 67 Melee . | . . . . . . Ram . | . . . . . . Kick . | . . . . . . Crush . | . . . . . . Escape Stasis . | . . . . . . Rewire . | . . . . . . Trap . | . . . . . . Miscellaneous . | . . . . . . Route ------- -11/Scrapyard -10/Materials (discovered 4 exits: [*Mat x2] / [*Min] / [*Sub]) -10/Mines -10/Subcaves -7/Scraptown (discovered 2 exits: *Fac x2) -5/Factory History --------- Turn | Location | Event 19 | -11/Scrapyard | Discovered new exit (range 16) 132 | -11/Scrapyard | Entered Materials 254 | -10/Materials | Discovered new exit (range 8) 309 | -10/Materials | Build established: Mutant 438 | -10/Materials | Discovered new exit (range 15) 499 | -10/Materials | Discovered new exit (range 6) 572 | -10/Materials | Discovered new exit (range 3) 755 | -10/Materials | Entered Mines 760 | -10/Mines | Met a Derelict bent on vengeance 762 | -10/Mines | Received a Rocket Launcher from a helpful Derelict 827 | -10/Mines | Learned Materials terminal intel 883 | -10/Mines | Found a Scrap Suit stashed away for nefarious purposes 887 | -10/Mines | Found Scrap Suit 924 | -10/Mines | Discovered new exit (range 6) 932 | -10/Mines | Entered Subcaves 933 | -10/Subcaves | Approached by a straggling Scientist 1025 | -10/Subcaves | Entered Scraptown 1354 | -7/Scraptown | Visited UFD Registry 1354 | -7/Scraptown | Registered with UFD as "Bulletglider" 1388 | -7/Scraptown | Visited IN-MT5's Study 1433 | -7/Scraptown | Visited Symbiants 1460 | -7/Scraptown | Visited Cyclists 1479 | -7/Scraptown | Entered Cyclist Reading Room 1489 | -7/Scraptown | Learned location of Zion (-7) 1580 | -7/Scraptown | Discovered new exit (range 13) 2180 | -7/Scraptown | Visited Fellowship of the Rings 2231 | -7/Scraptown | Visited Red Mages 2327 | -7/Scraptown | Visited SPCMW 2341 | -7/Scraptown | Visited TADAMA 2468 | -7/Scraptown | Visited LU-1G1's Boring Crew 2507 | -7/Scraptown | Visited A0-MCA Data Center 2521 | -7/Scraptown | Given a B- rating by A0-MCA 2529 | -7/Scraptown | Found A0-MCA's Component Scanner 2576 | -7/Scraptown | Visited Observation Area 3047 | -7/Scraptown | Build established: Hauler-Mutant 3319 | -7/Scraptown | Visited Infowarlord's Domain 3347 | -7/Scraptown | Found Spectral Analyzer 3437 | -7/Scraptown | Visited Scrap Suit Storage 3460 | -7/Scraptown | Found Scrap Suit 3472 | -7/Scraptown | Found Scrap Suit 3574 | -7/Scraptown | Visited DA-N13 Charitable Foundation 3636 | -7/Scraptown | Found DCF Scrap (27 items) 3737 | -7/Scraptown | Visited Curators Association 3809 | -7/Scraptown | Visited Abandonware Association 3826 | -7/Scraptown | Learned abandonware demo "OVRCLOCK.EXE" 3834 | -7/Scraptown | Learned abandonware demo "HACKBUD.EXE" 3834 | -7/Scraptown | Learned abandonware demo "REBOOT5.EXE" 3883 | -7/Scraptown | Visited Derelict Rescue Squad 3895 | -7/Scraptown | Found DRS Beacon 3937 | -7/Scraptown | Visited Chapter 10 4101 | -7/Scraptown | Met Optimus 4101 | -7/Scraptown | Accepted into 0bPrime 4232 | -7/Scraptown | Discovered new exit (range 5) 4246 | -7/Scraptown | Civil war broke out across Scraptown 4282 | -7/Scraptown | Found Vmp. Humpback 4303 | -7/Scraptown | Lost 5 allies 4316 | -7/Scraptown | Found Ballwheel 4321 | -7/Scraptown | Attacked by Scraptown defenders 4338 | -7/Scraptown | Crushed by falling debris 4339 | -7/Scraptown | Lost 4 allies 4346 | -7/Scraptown | Entered Factory 4346 | -5/Factory | Evolved 10 slots: Propulsion x3, Utility x6, Weapon x1 4599 | -5/Factory | Attached CPS modules to Y-64 Sentinel. 4649 | -5/Factory | Build established: Hauler-Tank 5055 | -5/Factory | Destroyed 7 combat bots 5086 | -5/Factory | Lost 5 parts (1p2n2u) 5103 | -5/Factory | System corruption reached 10% 5113 | -5/Factory | Spotted B-75 Beast 5133 | -5/Factory | Lost 5 parts (1u4w) 5135 | -5/Factory | Destroyed B-75 Beast 5151 | -5/Factory | Cargo convoy interrupted 5159 | -5/Factory | Self-destructed Last Messages --------------- 05155_ Destroyed Cesium-ion Thruster. 05155_ Slug penetrates X-67 Chaingunner. 05156_ U-05 Engineer lays Concrete. 05156_ K-01 Serf collects debris. 05156_ U-05 Engineer lays Concrete. 05156_ K-01 Serf collects debris. 05156_ U-05 Engineer lays Concrete. 05156_ Penetrated by Slug. 05156_ K-01 Serf collects debris. 05157_ QSV EDPVX7WX%7& T :VN%XEZPVC| 05157_ K-01 Serf collects debris. 05157_ U-05 Engineer lays Concrete. 05158_ U-05 Engineer builds a Wall. 05158_ U-05 Engineer lays Concrete. 05158_ Rocket Launcher destroyed. 05158_ U-05 Engineer lays Concrete. Map ----- +----------------------------------------------------+ | ## """ " """ + """""" # # | | ## ##] # """ # """""" # # | | # #####+### """ # """""" " # | | # # # """""" # # | | # # # # # | | + """ """ + """ # """""" # # * | | # """ """ # "R # """""" / %+ = | | # """ """ # """ # """""" # # | | # ^ # "" " """""" # | | # """ """ # # # | | # """ """ ##+################# # #%% | | ## """ """ * ## ## % # ### # | | ?# ## ## ! !+% %!% ## # | | ?# """?""" #? # u % ! #####= # | | ?# "???""" ? %%###!# # # # | | ?# "?????" # = %# # #######" | | ?? ????? ## u # # ?? | | ?? "?????" # ## # """"?? | | ?? "?????" ? k [ # ## # """"?? | | ?? ???????? ?# = #### # """??? | | ??????????????? ## % ##??# + ?????? | | ????????????????? # % #??# # ?????? | | ??????????????????# #???? # ?????? | | ????????????????# ### #% ;#/######### # ?????? | | ????????????????# h # ?????? | | ??????????????????## @ #??????? | | ???????????????????# #??????? | | ???????????????????# #??????? | | ???????????????????# # #??????? | | ?????????????????? k u #??????? | | ???????????????? # %! = u t#??????? | | ?????????????? ! u u // ;#?????? | | ????????????? """ """ u // ##?????? | | ??????????? """ """ #??????? | | ?????????#"" """ """ %= %#??????? | | ?????????#""? =% #??????? | | ???????????? """ """Am pxppxh #??????? | | ???????????? """ """ he ?????? | | ??????????????????""" i%%x = ?????? | | ?????????????????? % ?????? | | ??????????????????? % % %??????? | | ???????????????????### % k k ??????? | | ?????????????????????# ???????? | | ?????????????????????# % ?????????? | | ?????????????????????##% ???????????? | | ?????????????????????? ??????????????? | | ?????????????????????? ????????????????? | | ?????????????????????? ???????????????????? | | ???????????????????????? T??????????????????????? | | ?????????????????????????????????????????????????? | +----------------------------------------------------+ Best States ------------- Heat Dissipation 67 Energy Generation 18 Energy Capacity 310 Matter Stores 300 Matter Capacity 300 Sight Range 24 Terrain Scan Density 10 Armor Coverage 600 Resistance: KI 20 Evasion (%) 40 Recoil Reduction 2 Item Schematics ----------------- Huge Storage Unit | -10/Materials | Hacked Robot Schematics ------------------ None Fabricated ------------ Nothing Repaired ---------- Nothing Studied --------- None Alien Tech Used ----------------- None Achievements -------------- None Challenges ------------ None Game ------ Seed AnalysisBoreAccelerator Manual? 0 Play Time 00:39:34 Cumulative 150.0 hours Start 2026.06.19 @ 20:48:07 End 2026.06.19 @ 21:27:33 Sessions 1 Manual Loads 0 Difficulty Rogue Special Mode None Game No. 219 Rogue 219 Adventurer 0 Explorer 0 Win Type - Total 2 Types 2/0/0/0/0/0/0/0/0/0 Lore% 70 Gallery% 52 Achievement% 40 Wizard Run 0 Options --------- Layout 0 ASCII 0 Keyboard 0 Movement Arrows Keybinds 0 Fullscreen 1 Font 18/Terminus Map View 76x50 Zoom Use 0% Tactical HUD 1 Map Filters NONE Filters NONE Steam 1 RUN: 0a2e51e3-e236-440c-9481-c10eed126b87